[Event "Titled Tuesday Blitz December 7 2021"]
[White "Erdogdu, Mert"]
[Black "Matinian, Nikita"]
[WhiteFideId "6301495"]
[BlackFideId "24129100"]
[WhiteElo "2564"]
[BlackElo "2720"]
[Result "0-1"]
[Round "08"]
[TimeControl "180+1"]
[Date "2021.12.07"]
[WhiteClock "0:00:04"]
[BlackClock "0:00:12"]

1. e4 {[%clk 0:03:00]}  d6 {[%clk 0:02:59]} 2. d4 {[%clk 0:03:00]}  g6 {[%clk 0:02:59]} 3. Nc3 {[%clk 0:03:01]}  a6 {[%clk 0:02:59]} 4. Be3 {[%clk 0:03:01]}  Bg7 {[%clk 0:02:58]} 5. f4 {[%clk 0:03:01]}  b5 {[%clk 0:02:58]} 6. Bd3 {[%clk 0:03:00]}  Nd7 {[%clk 0:02:58]} 7. Nf3 {[%clk 0:03:00]}  c5 {[%clk 0:02:58]} 8. e5 {[%clk 0:02:55]}  cxd4 {[%clk 0:02:57]} 9. Bxd4 {[%clk 0:02:55]}  Nh6 {[%clk 0:02:36]} 10. e6 {[%clk 0:02:44]}  Nf6 {[%clk 0:02:35]} 11. exf7+ {[%clk 0:02:42]}  Nxf7 {[%clk 0:02:36]} 12. Qe2 {[%clk 0:02:40]}  O-O {[%clk 0:02:36]} 13. O-O-O {[%clk 0:02:39]}  Bd7 {[%clk 0:02:03]} 14. Rhe1 {[%clk 0:02:37]}  Re8 {[%clk 0:02:02]} 15. Kb1 {[%clk 0:02:37]}  Rc8 {[%clk 0:01:59]} 16. Ne4 {[%clk 0:02:22]}  e5 {[%clk 0:01:50]} 17. fxe5 {[%clk 0:02:15]}  dxe5 {[%clk 0:01:46]} 18. Bf2 {[%clk 0:02:01]}  Be6 {[%clk 0:01:46]} 19. Bh4 {[%clk 0:01:35]}  Qe7 {[%clk 0:01:17]} 20. Rf1 {[%clk 0:01:22]}  Bf5 {[%clk 0:01:16]} 21. Nfd2 {[%clk 0:01:08]}  Nh6 {[%clk 0:01:12]} 22. h3 {[%clk 0:01:01]}  Rf8 {[%clk 0:01:03]} 23. g4 {[%clk 0:00:54]}  Bxe4 {[%clk 0:01:02]} 24. Nxe4 {[%clk 0:00:54]}  Qe6 {[%clk 0:00:58]} 25. Bxf6 {[%clk 0:00:41]}  Bxf6 {[%clk 0:00:59]} 26. g5 {[%clk 0:00:40]}  Bg7 {[%clk 0:00:49]} 27. gxh6 {[%clk 0:00:39]}  Bxh6 {[%clk 0:00:50]} 28. Qg4 {[%clk 0:00:35]}  Qxg4 {[%clk 0:00:50]} 29. hxg4 {[%clk 0:00:35]}  Bf4 {[%clk 0:00:51]} 30. a4 {[%clk 0:00:32]}  bxa4 {[%clk 0:00:50]} 31. Bxa6 {[%clk 0:00:32]}  Rc7 {[%clk 0:00:51]} 32. Bb5 {[%clk 0:00:32]}  Ra8 {[%clk 0:00:47]} 33. c4 {[%clk 0:00:25]}  Kg7 {[%clk 0:00:47]} 34. Rd6 {[%clk 0:00:22]}  a3 {[%clk 0:00:44]} 35. b3 {[%clk 0:00:19]}  a2+ {[%clk 0:00:43]} 36. Ka1 {[%clk 0:00:19]}  Be3 {[%clk 0:00:41]} 37. Ba4 {[%clk 0:00:18]}  Rxc4 {[%clk 0:00:29]} 38. bxc4 {[%clk 0:00:18]}  Rxa4 {[%clk 0:00:30]} 39. Nc3 {[%clk 0:00:15]}  Rxc4 {[%clk 0:00:28]} 40. Nxa2 {[%clk 0:00:14]}  Rxg4 {[%clk 0:00:29]} 41. Kb1 {[%clk 0:00:13]}  h5 {[%clk 0:00:28]} 42. Nc3 {[%clk 0:00:13]}  h4 {[%clk 0:00:25]} 43. Nd5 {[%clk 0:00:13]}  Bd4 {[%clk 0:00:25]} 44. Rd7+ {[%clk 0:00:11]}  Kh6 {[%clk 0:00:25]} 45. Nf6 {[%clk 0:00:10]}  Rg2 {[%clk 0:00:25]} 46. Rh7+ {[%clk 0:00:10]}  Kg5 {[%clk 0:00:26]} 47. Ne4+ {[%clk 0:00:09]}  Kg4 {[%clk 0:00:26]} 48. Rg7 {[%clk 0:00:08]}  Rb2+ {[%clk 0:00:17]} 49. Kc1 {[%clk 0:00:08]}  Rb6 {[%clk 0:00:17]} 50. Kc2 {[%clk 0:00:07]}  h3 {[%clk 0:00:18]} 51. Kd3 {[%clk 0:00:06]}  h2 {[%clk 0:00:18]} 52. Rh7 {[%clk 0:00:07]}  Rb3+ {[%clk 0:00:16]} 53. Kc4 {[%clk 0:00:06]}  Rh3 {[%clk 0:00:14]} 54. Nf6+ {[%clk 0:00:06]}  Kg3 {[%clk 0:00:13]} 55. Ne4+ {[%clk 0:00:07]}  Kg2 {[%clk 0:00:13]} 56. Rxh3 {[%clk 0:00:06]}  Kxh3 {[%clk 0:00:14]} 57. Rf7 {[%clk 0:00:01]}  h1=Q {[%clk 0:00:09]} 58. Rh7+ {[%clk 0:00:02]}  Kg2 {[%clk 0:00:10]} 59. Rxh1 {[%clk 0:00:01]}  Kxh1 {[%clk 0:00:11]} 60. Kd5 {[%clk 0:00:02]}  Kg2 {[%clk 0:00:12]} 61. Ke6 {[%clk 0:00:03]}  Kf3 {[%clk 0:00:12]} 62. Kd5 {[%clk 0:00:03]}  Kf4 {[%clk 0:00:12]} 63. Nf6 {[%clk 0:00:03]}  g5 {[%clk 0:00:12]} 64. Nh5+ {[%clk 0:00:04]}  Kf3 {[%clk 0:00:12]} 65. Nf6 {[%clk 0:00:04]}  g4 {[%clk 0:00:12]} 0-1


[Site "https://www.chess.com"]

[Event "Titled Tuesday Blitz December 7 2021"]
[White "Faizrakhmanov, Ramil"]
[Black "Macovei, Andrei"]
[WhiteFideId "24103209"]
[BlackFideId "13904680"]
[WhiteElo "2808"]
[BlackElo "2698"]
[Result "1-0"]
[Round "08"]
[TimeControl "180+1"]
[Date "2021.12.07"]
[WhiteClock "0:00:34"]
[BlackClock "0:00:36"]

1. e4 {[%clk 0:03:00]}  c6 {[%clk 0:02:56]} 2. d4 {[%clk 0:03:00]}  d5 {[%clk 0:02:57]} 3. e5 {[%clk 0:03:00]}  Bf5 {[%clk 0:02:56]} 4. Nf3 {[%clk 0:03:01]}  e6 {[%clk 0:02:56]} 5. Be2 {[%clk 0:03:01]}  Ne7 {[%clk 0:02:57]} 6. O-O {[%clk 0:03:00]}  c5 {[%clk 0:02:57]} 7. dxc5 {[%clk 0:02:59]}  Nec6 {[%clk 0:02:56]} 8. Be3 {[%clk 0:02:59]}  Nd7 {[%clk 0:02:55]} 9. c4 {[%clk 0:02:56]}  dxc4 {[%clk 0:02:55]} 10. Nbd2 {[%clk 0:02:52]}  Bxc5 {[%clk 0:02:55]} 11. Nxc4 {[%clk 0:02:51]}  O-O {[%clk 0:02:55]} 12. Qc1 {[%clk 0:02:47]}  Be4 {[%clk 0:02:45]} 13. Rd1 {[%clk 0:02:43]}  Bxe3 {[%clk 0:02:41]} 14. Qxe3 {[%clk 0:02:39]}  Bd5 {[%clk 0:02:39]} 15. Rac1 {[%clk 0:02:25]}  Qc7 {[%clk 0:02:19]} 16. b3 {[%clk 0:02:01]}  Bxc4 {[%clk 0:02:15]} 17. Rxc4 {[%clk 0:01:50]}  Ndxe5 {[%clk 0:02:12]} 18. Nxe5 {[%clk 0:01:46]}  Qxe5 {[%clk 0:02:13]} 19. Qxe5 {[%clk 0:01:45]}  Nxe5 {[%clk 0:02:14]} 20. Rc7 {[%clk 0:01:45]}  Rab8 {[%clk 0:02:13]} 21. f4 {[%clk 0:01:44]}  Ng6 {[%clk 0:02:12]} 22. g3 {[%clk 0:01:44]}  Rfc8 {[%clk 0:02:10]} 23. Rdd7 {[%clk 0:01:41]}  Rxc7 {[%clk 0:02:03]} 24. Rxc7 {[%clk 0:01:39]}  a5 {[%clk 0:02:04]} 25. Bf3 {[%clk 0:01:36]}  b6 {[%clk 0:02:03]} 26. Kf2 {[%clk 0:01:36]}  Kf8 {[%clk 0:02:01]} 27. Ke3 {[%clk 0:01:36]}  Ne7 {[%clk 0:01:59]} 28. Kd4 {[%clk 0:01:29]}  Rd8+ {[%clk 0:01:55]} 29. Kc4 {[%clk 0:01:24]}  Rc8 {[%clk 0:01:30]} 30. Rxc8+ {[%clk 0:01:21]}  Nxc8 {[%clk 0:01:31]} 31. Kb5 {[%clk 0:01:21]}  Ke7 {[%clk 0:01:31]} 32. Kc6 {[%clk 0:01:15]}  Kd8 {[%clk 0:01:29]} 33. Bg4 {[%clk 0:01:08]}  g6 {[%clk 0:01:26]} 34. a4 {[%clk 0:01:02]}  h6 {[%clk 0:01:17]} 35. h4 {[%clk 0:00:59]}  h5 {[%clk 0:01:07]} 36. Bh3 {[%clk 0:00:56]}  Ke7 {[%clk 0:00:59]} 37. Kc7 {[%clk 0:00:55]}  Nd6 {[%clk 0:00:59]} 38. Kxb6 {[%clk 0:00:55]}  Ne4 {[%clk 0:00:55]} 39. Kxa5 {[%clk 0:00:50]}  Nxg3 {[%clk 0:00:54]} 40. Kb6 {[%clk 0:00:49]}  Kd7 {[%clk 0:00:54]} 41. a5 {[%clk 0:00:45]}  Ne2 {[%clk 0:00:48]} 42. Bg2 {[%clk 0:00:34]}  Nxf4 {[%clk 0:00:36]} 43. Bc6+ {[%clk 0:00:33]}  Kd6 {[%clk 0:00:36]} 44. a6 {[%clk 0:00:34]} 1-0


[Site "https://www.chess.com"]

[Event "Titled Tuesday Blitz December 7 2021"]
[White "Gabdushev, Ruslan"]
[Black "Pourkashiyan, Atousa"]
[WhiteFideId "4137833"]
[BlackFideId "12502014"]
[WhiteElo "2312"]
[BlackElo "2285"]
[Result "1-0"]
[Round "08"]
[TimeControl "180+1"]
[Date "2021.12.07"]
[WhiteClock "0:00:08"]
[BlackClock "0:00:03"]

1. c4 {[%clk 0:02:58]}  e6 {[%clk 0:02:58]} 2. d3 {[%clk 0:02:55]}  Nf6 {[%clk 0:02:58]} 3. e3 {[%clk 0:02:52]}  d5 {[%clk 0:02:59]} 4. cxd5 {[%clk 0:02:51]}  exd5 {[%clk 0:02:59]} 5. Nf3 {[%clk 0:02:51]}  c5 {[%clk 0:02:52]} 6. Be2 {[%clk 0:02:49]}  Nc6 {[%clk 0:02:52]} 7. Nbd2 {[%clk 0:02:49]}  Bd6 {[%clk 0:02:52]} 8. Nf1 {[%clk 0:02:49]}  O-O {[%clk 0:02:32]} 9. Ng3 {[%clk 0:02:48]}  Re8 {[%clk 0:02:32]} 10. Bd2 {[%clk 0:02:46]}  b6 {[%clk 0:02:31]} 11. O-O {[%clk 0:02:45]}  Bd7 {[%clk 0:02:15]} 12. b3 {[%clk 0:02:37]}  h6 {[%clk 0:02:14]} 13. a3 {[%clk 0:02:34]}  a5 {[%clk 0:02:14]} 14. Bc3 {[%clk 0:02:27]}  b5 {[%clk 0:02:09]} 15. a4 {[%clk 0:02:22]}  b4 {[%clk 0:02:08]} 16. Bb2 {[%clk 0:02:20]}  Rc8 {[%clk 0:02:02]} 17. Rc1 {[%clk 0:02:16]}  Qe7 {[%clk 0:02:01]} 18. d4 {[%clk 0:02:09]}  Ne4 {[%clk 0:01:35]} 19. Ba6 {[%clk 0:01:50]}  Ra8 {[%clk 0:01:29]} 20. Bb7 {[%clk 0:01:46]}  Rab8 {[%clk 0:01:30]} 21. Bxc6 {[%clk 0:01:46]}  Bxc6 {[%clk 0:01:31]} 22. dxc5 {[%clk 0:01:46]}  Bxc5 {[%clk 0:01:22]} 23. Nd4 {[%clk 0:01:41]}  Bxd4 {[%clk 0:00:31]} 24. Qxd4 {[%clk 0:01:39]}  Nc3 {[%clk 0:00:26]} 25. Bxc3 {[%clk 0:01:19]}  bxc3 {[%clk 0:00:27]} 26. Rxc3 {[%clk 0:01:19]}  Bd7 {[%clk 0:00:25]} 27. Qxd5 {[%clk 0:01:16]}  Be6 {[%clk 0:00:24]} 28. Qxa5 {[%clk 0:01:11]}  Rxb3 {[%clk 0:00:24]} 29. Rxb3 {[%clk 0:01:08]}  Bxb3 {[%clk 0:00:25]} 30. Qb5 {[%clk 0:01:08]}  Qe6 {[%clk 0:00:25]} 31. Rb1 {[%clk 0:01:05]}  Bc4 {[%clk 0:00:24]} 32. Qb6 {[%clk 0:00:59]}  Qd5 {[%clk 0:00:18]} 33. Qd4 {[%clk 0:00:44]}  Qe6 {[%clk 0:00:13]} 34. h3 {[%clk 0:00:40]}  Ra8 {[%clk 0:00:12]} 35. Rb4 {[%clk 0:00:39]}  Ba6 {[%clk 0:00:11]} 36. Rb6 {[%clk 0:00:37]}  Qc8 {[%clk 0:00:09]} 37. a5 {[%clk 0:00:35]}  Bb7 {[%clk 0:00:09]} 38. Qb4 {[%clk 0:00:34]}  Bd5 {[%clk 0:00:09]} 39. a6 {[%clk 0:00:30]}  Kh7 {[%clk 0:00:08]} 40. Qa5 {[%clk 0:00:25]}  Ra7 {[%clk 0:00:07]} 41. Qxd5 {[%clk 0:00:24]}  Rxa6 {[%clk 0:00:08]} 42. Qe4+ {[%clk 0:00:22]}  f5 {[%clk 0:00:07]} 43. Qb4 {[%clk 0:00:17]}  Ra1+ {[%clk 0:00:07]} 44. Kh2 {[%clk 0:00:16]}  Qc1 {[%clk 0:00:08]} 45. Nxf5 {[%clk 0:00:14]}  Qg1+ {[%clk 0:00:08]} 46. Kg3 {[%clk 0:00:14]}  Ra2 {[%clk 0:00:08]} 47. Rxh6+ {[%clk 0:00:10]}  Kg8 {[%clk 0:00:02]} 48. Qb8+ {[%clk 0:00:09]}  Kf7 {[%clk 0:00:03]} 49. Qc7+ {[%clk 0:00:09]}  Ke8 {[%clk 0:00:03]} 50. Rh8# {[%clk 0:00:08]} 1-0


[Site "https://www.chess.com"]

[Event "Titled Tuesday Blitz December 7 2021"]
[White "Gasanov, Eldar"]
[Black "Perez Gormaz, Matias"]
[WhiteFideId "14104466"]
[BlackFideId "3406342"]
[WhiteElo "2762"]
[BlackElo "2638"]
[Result "1-0"]
[Round "08"]
[TimeControl "180+1"]
[Date "2021.12.07"]
[WhiteClock "0:00:03"]
[BlackClock "0:00:03"]

1. d4 {[%clk 0:03:00]}  d5 {[%clk 0:02:58]} 2. c4 {[%clk 0:02:59]}  e6 {[%clk 0:02:58]} 3. Nf3 {[%clk 0:02:59]}  a6 {[%clk 0:02:58]} 4. Nbd2 {[%clk 0:02:57]}  Nf6 {[%clk 0:02:57]} 5. g3 {[%clk 0:02:54]}  c5 {[%clk 0:02:55]} 6. Bg2 {[%clk 0:02:50]}  Nc6 {[%clk 0:02:54]} 7. cxd5 {[%clk 0:02:43]}  exd5 {[%clk 0:02:54]} 8. O-O {[%clk 0:02:41]}  h6 {[%clk 0:02:35]} 9. dxc5 {[%clk 0:02:25]}  Bxc5 {[%clk 0:02:35]} 10. Nb3 {[%clk 0:02:24]}  Ba7 {[%clk 0:02:31]} 11. Nbd4 {[%clk 0:02:20]}  O-O {[%clk 0:02:31]} 12. Nxc6 {[%clk 0:02:10]}  bxc6 {[%clk 0:02:31]} 13. Nd4 {[%clk 0:02:10]}  Bd7 {[%clk 0:02:28]} 14. Bf4 {[%clk 0:02:01]}  Re8 {[%clk 0:02:26]} 15. Rc1 {[%clk 0:01:55]}  Rc8 {[%clk 0:02:21]} 16. b4 {[%clk 0:01:50]}  Qb6 {[%clk 0:02:13]} 17. Nc2 {[%clk 0:01:35]}  Ng4 {[%clk 0:02:13]} 18. e3 {[%clk 0:01:32]}  a5 {[%clk 0:02:07]} 19. a3 {[%clk 0:01:28]}  axb4 {[%clk 0:02:05]} 20. axb4 {[%clk 0:01:29]}  Nf6 {[%clk 0:01:53]} 21. Bd6 {[%clk 0:01:24]}  Ne4 {[%clk 0:01:35]} 22. Bxe4 {[%clk 0:01:22]}  Rxe4 {[%clk 0:01:36]} 23. Bc5 {[%clk 0:01:14]}  Qb7 {[%clk 0:01:36]} 24. Bxa7 {[%clk 0:01:11]}  Qxa7 {[%clk 0:01:37]} 25. Nd4 {[%clk 0:01:12]}  Qb6 {[%clk 0:01:37]} 26. Qd2 {[%clk 0:01:11]}  Bh3 {[%clk 0:01:32]} 27. Rfe1 {[%clk 0:01:11]}  Bd7 {[%clk 0:01:22]} 28. Rc2 {[%clk 0:01:00]}  Rb8 {[%clk 0:01:20]} 29. Rb1 {[%clk 0:00:52]}  Ree8 {[%clk 0:00:53]} 30. f3 {[%clk 0:00:49]}  Ra8 {[%clk 0:00:50]} 31. Kf2 {[%clk 0:00:45]}  Ra3 {[%clk 0:00:49]} 32. Rc3 {[%clk 0:00:44]}  Ra7 {[%clk 0:00:45]} 33. Rb2 {[%clk 0:00:36]}  Rea8 {[%clk 0:00:43]} 34. Rc1 {[%clk 0:00:29]}  Ra3 {[%clk 0:00:41]} 35. Qc2 {[%clk 0:00:28]}  Re8 {[%clk 0:00:39]} 36. Rb3 {[%clk 0:00:28]}  Ra6 {[%clk 0:00:37]} 37. Qc5 {[%clk 0:00:27]}  Qb7 {[%clk 0:00:28]} 38. Rbc3 {[%clk 0:00:23]}  Rc8 {[%clk 0:00:26]} 39. Qe7 {[%clk 0:00:22]}  Rb6 {[%clk 0:00:20]} 40. b5 {[%clk 0:00:20]}  cxb5 {[%clk 0:00:12]} 41. Rxc8+ {[%clk 0:00:19]}  Bxc8 {[%clk 0:00:13]} 42. Qd8+ {[%clk 0:00:17]}  Kh7 {[%clk 0:00:13]} 43. Rxc8 {[%clk 0:00:17]}  Rf6 {[%clk 0:00:09]} 44. Rc7 {[%clk 0:00:14]}  Qa6 {[%clk 0:00:04]} 45. Qxd5 {[%clk 0:00:14]}  b4 {[%clk 0:00:04]} 46. Qe4+ {[%clk 0:00:13]}  g6 {[%clk 0:00:04]} 47. g4 {[%clk 0:00:12]}  Qa2+ {[%clk 0:00:03]} 48. Rc2 {[%clk 0:00:11]}  Qa1 {[%clk 0:00:03]} 49. Kg2 {[%clk 0:00:10]}  Qe1 {[%clk 0:00:03]} 50. Qe5 {[%clk 0:00:09]}  b3 {[%clk 0:00:02]} 51. Rc8 {[%clk 0:00:06]}  Kg7 {[%clk 0:00:03]} 52. Ne6+ {[%clk 0:00:04]}  fxe6 {[%clk 0:00:03]} 53. Rc7+ {[%clk 0:00:04]}  Kg8 {[%clk 0:00:03]} 54. Qxf6 {[%clk 0:00:04]}  Qe2+ {[%clk 0:00:04]} 55. Kg3 {[%clk 0:00:04]}  Qe1+ {[%clk 0:00:04]} 56. Kf4 {[%clk 0:00:04]}  Qb4+ {[%clk 0:00:03]} 57. Qd4 {[%clk 0:00:03]} 1-0


[Site "https://www.chess.com"]

[Event "Titled Tuesday Blitz December 7 2021"]
[White "Golubka, Petro"]
[Black "Bilan, Danila"]
[WhiteFideId "14114224"]
[BlackFideId "24161918"]
[WhiteElo "2730"]
[BlackElo "2521"]
[Result "1/2-1/2"]
[Round "08"]
[TimeControl "180+1"]
[Date "2021.12.07"]
[WhiteClock "0:02:15"]
[BlackClock "0:00:35"]

1. e4 {[%clk 0:03:00]}  c6 {[%clk 0:02:58]} 2. d4 {[%clk 0:03:00]}  d5 {[%clk 0:02:59]} 3. e5 {[%clk 0:03:00]}  Bf5 {[%clk 0:02:56]} 4. g4 {[%clk 0:02:59]}  Bd7 {[%clk 0:02:51]} 5. Bg2 {[%clk 0:02:58]}  e6 {[%clk 0:02:48]} 6. c3 {[%clk 0:02:53]}  c5 {[%clk 0:02:47]} 7. Ne2 {[%clk 0:02:52]}  h5 {[%clk 0:02:30]} 8. g5 {[%clk 0:02:51]}  Ne7 {[%clk 0:02:25]} 9. Nf4 {[%clk 0:02:50]}  g6 {[%clk 0:02:19]} 10. c4 {[%clk 0:02:49]}  Bc6 {[%clk 0:02:11]} 11. dxc5 {[%clk 0:02:47]}  dxc4 {[%clk 0:01:44]} 12. Qxd8+ {[%clk 0:02:48]}  Kxd8 {[%clk 0:01:43]} 13. O-O {[%clk 0:02:46]}  Bxg2 {[%clk 0:01:38]} 14. Kxg2 {[%clk 0:02:47]}  Nec6 {[%clk 0:01:35]} 15. Be3 {[%clk 0:02:42]}  Nd7 {[%clk 0:01:26]} 16. Na3 {[%clk 0:02:41]}  Ncxe5 {[%clk 0:01:12]} 17. Rfd1 {[%clk 0:02:38]}  Kc7 {[%clk 0:00:38]} 18. Nb5+ {[%clk 0:02:34]}  Kc6 {[%clk 0:00:35]} 19. Nd4+ {[%clk 0:02:27]}  Kc7 {[%clk 0:00:34]} 20. Nb5+ {[%clk 0:02:25]}  Kc6 {[%clk 0:00:34]} 21. Nd4+ {[%clk 0:02:21]}  Kc7 {[%clk 0:00:35]} 22. Nb5+ {[%clk 0:02:15]} 1/2-1/2


[Site "https://www.chess.com"]

[Event "Titled Tuesday Blitz December 7 2021"]
[White "Gubsky, Egor"]
[Black "Lewtak, Damian"]
[WhiteFideId "4194055"]
[BlackFideId "1141724"]
[WhiteElo "2175"]
[BlackElo "2546"]
[Result "1-0"]
[Round "08"]
[TimeControl "180+1"]
[Date "2021.12.07"]
[WhiteClock "0:00:12"]
[BlackClock "0:00:09"]

1. d4 {[%clk 0:03:00]}  d6 {[%clk 0:02:44]} 2. c4 {[%clk 0:02:45]}  e5 {[%clk 0:02:41]} 3. Nf3 {[%clk 0:02:42]}  Nc6 {[%clk 0:02:40]} 4. e3 {[%clk 0:02:36]}  Nf6 {[%clk 0:02:38]} 5. Nc3 {[%clk 0:02:35]}  Be7 {[%clk 0:02:33]} 6. Bd3 {[%clk 0:02:32]}  O-O {[%clk 0:02:32]} 7. O-O {[%clk 0:02:31]}  Bg4 {[%clk 0:02:31]} 8. h3 {[%clk 0:02:31]}  Bh5 {[%clk 0:02:32]} 9. Be2 {[%clk 0:02:28]}  Re8 {[%clk 0:01:11]} 10. b3 {[%clk 0:02:26]}  exd4 {[%clk 0:01:10]} 11. Nxd4 {[%clk 0:02:15]}  Bxe2 {[%clk 0:01:08]} 12. Ncxe2 {[%clk 0:02:13]}  Nxd4 {[%clk 0:01:07]} 13. Nxd4 {[%clk 0:02:14]}  Ne4 {[%clk 0:01:07]} 14. Bb2 {[%clk 0:02:05]}  Bf6 {[%clk 0:01:04]} 15. Qc2 {[%clk 0:02:04]}  Qd7 {[%clk 0:01:03]} 16. Rad1 {[%clk 0:02:03]}  a6 {[%clk 0:00:56]} 17. b4 {[%clk 0:02:02]}  b6 {[%clk 0:00:52]} 18. a3 {[%clk 0:01:57]}  a5 {[%clk 0:00:50]} 19. Nb5 {[%clk 0:01:52]}  Bxb2 {[%clk 0:00:44]} 20. Qxb2 {[%clk 0:01:53]}  c6 {[%clk 0:00:44]} 21. Nc3 {[%clk 0:01:34]}  axb4 {[%clk 0:00:41]} 22. Nxe4 {[%clk 0:01:19]}  Rxe4 {[%clk 0:00:40]} 23. Qxb4 {[%clk 0:01:19]}  Qc7 {[%clk 0:00:22]} 24. Rxd6 {[%clk 0:00:26]}  Rxc4 {[%clk 0:00:22]} 25. Qd2 {[%clk 0:00:24]}  h6 {[%clk 0:00:22]} 26. Rd7 {[%clk 0:00:24]}  Qe5 {[%clk 0:00:22]} 27. Rb7 {[%clk 0:00:18]}  b5 {[%clk 0:00:20]} 28. Qd7 {[%clk 0:00:15]}  Qe6 {[%clk 0:00:21]} 29. Qc7 {[%clk 0:00:12]}  Rc8 {[%clk 0:00:18]} 30. Rb8 {[%clk 0:00:12]}  Rxb8 {[%clk 0:00:18]} 31. Qxb8+ {[%clk 0:00:13]}  Kh7 {[%clk 0:00:18]} 32. Rd1 {[%clk 0:00:13]}  Rc2 {[%clk 0:00:16]} 33. Qf4 {[%clk 0:00:13]}  Qf6 {[%clk 0:00:14]} 34. Qe4+ {[%clk 0:00:13]}  Qg6 {[%clk 0:00:14]} 35. Qf3 {[%clk 0:00:13]}  Ra2 {[%clk 0:00:13]} 36. Rc1 {[%clk 0:00:12]}  Rxa3 {[%clk 0:00:12]} 37. Rxc6 {[%clk 0:00:12]}  f6 {[%clk 0:00:11]} 38. Rb6 {[%clk 0:00:12]}  Rb3 {[%clk 0:00:11]} 39. Rb8 {[%clk 0:00:12]}  Rb1+ {[%clk 0:00:11]} 40. Kh2 {[%clk 0:00:12]}  Qg5 {[%clk 0:00:10]} 41. Qe4+ {[%clk 0:00:11]}  Qg6 {[%clk 0:00:09]} 42. Rh8+ {[%clk 0:00:12]} 1-0


[Site "https://www.chess.com"]

[Event "Titled Tuesday Blitz December 7 2021"]
[White "Guseva, Marina"]
[Black "Sokolin, Leonid"]
[WhiteFideId "4149351"]
[BlackFideId "2009161"]
[WhiteElo "2418"]
[BlackElo "2497"]
[Result "0-1"]
[Round "08"]
[TimeControl "180+1"]
[Date "2021.12.07"]
[WhiteClock "0:01:52"]
[BlackClock "0:02:30"]

1. d4 {[%clk 0:03:00]}  Nf6 {[%clk 0:02:58]} 2. c4 {[%clk 0:03:00]}  e6 {[%clk 0:02:57]} 3. Nf3 {[%clk 0:02:59]}  d5 {[%clk 0:02:56]} 4. g3 {[%clk 0:02:59]}  Be7 {[%clk 0:02:55]} 5. Bg2 {[%clk 0:02:58]}  O-O {[%clk 0:02:55]} 6. O-O {[%clk 0:02:58]}  dxc4 {[%clk 0:02:55]} 7. Qc2 {[%clk 0:02:57]}  b5 {[%clk 0:02:55]} 8. a4 {[%clk 0:02:26]}  b4 {[%clk 0:02:55]} 9. Ne5 {[%clk 0:02:17]}  Qxd4 {[%clk 0:02:46]} 10. Nxc4 {[%clk 0:02:04]}  Nd5 {[%clk 0:02:32]} 11. e4 {[%clk 0:01:56]}  Nb6 {[%clk 0:02:31]} 12. Rd1 {[%clk 0:01:52]}  Qxc4 {[%clk 0:02:30]} 0-1


[Site "https://www.chess.com"]

[Event "Titled Tuesday Blitz December 7 2021"]
[White "Guz, Ari"]
[Black "Belyakov, Bogdan"]
[WhiteFideId "2825759"]
[BlackFideId "24104795"]
[WhiteElo "2667"]
[BlackElo "2711"]
[Result "0-1"]
[Round "08"]
[TimeControl "180+1"]
[Date "2021.12.07"]
[WhiteClock "0:00:09"]
[BlackClock "0:00:21"]

1. b3 {[%clk 0:03:00]}  e5 {[%clk 0:02:54]} 2. Bb2 {[%clk 0:03:01]}  Nc6 {[%clk 0:02:51]} 3. Nf3 {[%clk 0:03:01]}  e4 {[%clk 0:02:48]} 4. Ng1 {[%clk 0:03:00]}  Nf6 {[%clk 0:02:47]} 5. d3 {[%clk 0:03:00]}  Bc5 {[%clk 0:02:43]} 6. dxe4 {[%clk 0:02:57]}  Nxe4 {[%clk 0:02:42]} 7. e3 {[%clk 0:02:52]}  Qe7 {[%clk 0:02:42]} 8. Qf3 {[%clk 0:02:26]}  d5 {[%clk 0:02:41]} 9. Bd3 {[%clk 0:01:55]}  O-O {[%clk 0:02:36]} 10. Bxe4 {[%clk 0:01:46]}  dxe4 {[%clk 0:02:36]} 11. Qg3 {[%clk 0:01:46]}  f5 {[%clk 0:02:35]} 12. Ne2 {[%clk 0:01:46]}  Nb4 {[%clk 0:02:31]} 13. Na3 {[%clk 0:01:39]}  Bd6 {[%clk 0:02:26]} 14. Nf4 {[%clk 0:01:28]}  Be5 {[%clk 0:02:22]} 15. Bxe5 {[%clk 0:01:22]}  Qxe5 {[%clk 0:02:23]} 16. O-O {[%clk 0:01:21]}  Nd5 {[%clk 0:02:12]} 17. Nc4 {[%clk 0:01:17]}  Nxf4 {[%clk 0:02:12]} 18. Nxe5 {[%clk 0:01:11]}  Ne2+ {[%clk 0:02:12]} 19. Kh1 {[%clk 0:01:11]}  Nxg3+ {[%clk 0:02:13]} 20. hxg3 {[%clk 0:01:11]}  Be6 {[%clk 0:02:12]} 21. Rfd1 {[%clk 0:01:09]}  Rfd8 {[%clk 0:02:12]} 22. Kg1 {[%clk 0:01:07]}  g6 {[%clk 0:01:55]} 23. f4 {[%clk 0:01:00]}  exf3 {[%clk 0:01:54]} 24. gxf3 {[%clk 0:00:57]}  Kg7 {[%clk 0:01:53]} 25. Kf2 {[%clk 0:00:55]}  Kf6 {[%clk 0:01:54]} 26. f4 {[%clk 0:00:54]}  Ke7 {[%clk 0:01:38]} 27. Ke2 {[%clk 0:00:48]}  Rxd1 {[%clk 0:01:33]} 28. Rxd1 {[%clk 0:00:47]}  Rd8 {[%clk 0:01:34]} 29. Rh1 {[%clk 0:00:48]}  Bg8 {[%clk 0:01:32]} 30. c4 {[%clk 0:00:45]}  c5 {[%clk 0:01:28]} 31. Nf3 {[%clk 0:00:42]}  Kf6 {[%clk 0:01:25]} 32. Ng5 {[%clk 0:00:40]}  Rd7 {[%clk 0:01:24]} 33. e4 {[%clk 0:00:36]}  fxe4 {[%clk 0:01:10]} 34. Nxe4+ {[%clk 0:00:36]}  Kf5 {[%clk 0:01:11]} 35. Nxc5 {[%clk 0:00:34]}  Rc7 {[%clk 0:01:05]} 36. Nd3 {[%clk 0:00:30]}  b5 {[%clk 0:00:50]} 37. c5 {[%clk 0:00:16]}  b4 {[%clk 0:00:49]} 38. Rc1 {[%clk 0:00:13]}  a5 {[%clk 0:00:49]} 39. c6 {[%clk 0:00:11]}  Ke6 {[%clk 0:00:37]} 40. Ne5 {[%clk 0:00:10]}  Kd6 {[%clk 0:00:35]} 41. Rd1+ {[%clk 0:00:10]}  Bd5 {[%clk 0:00:34]} 42. Ke3 {[%clk 0:00:09]}  Ke6 {[%clk 0:00:30]} 43. Rc1 {[%clk 0:00:09]}  a4 {[%clk 0:00:21]} 44. bxa4 {[%clk 0:00:02]}  Bxa2 {[%clk 0:00:22]} 45. Nd3 {[%clk 0:00:02]}  b3 {[%clk 0:00:20]} 46. Kd4 {[%clk 0:00:03]}  Kd6 {[%clk 0:00:17]} 47. Rc5 {[%clk 0:00:03]}  Rxc6 {[%clk 0:00:17]} 48. Rxc6+ {[%clk 0:00:03]}  Kxc6 {[%clk 0:00:17]} 49. Kc3 {[%clk 0:00:03]}  Kb6 {[%clk 0:00:17]} 50. Nb4 {[%clk 0:00:03]}  Ka5 {[%clk 0:00:17]} 51. Nxa2 {[%clk 0:00:03]}  bxa2 {[%clk 0:00:18]} 52. Kb2 {[%clk 0:00:03]}  Kxa4 {[%clk 0:00:19]} 53. Kxa2 {[%clk 0:00:04]}  Kb4 {[%clk 0:00:19]} 54. Kb2 {[%clk 0:00:04]}  Kc4 {[%clk 0:00:20]} 55. Kc2 {[%clk 0:00:05]}  Kd4 {[%clk 0:00:21]} 56. Kd2 {[%clk 0:00:06]}  Ke4 {[%clk 0:00:22]} 57. Ke2 {[%clk 0:00:06]}  h5 {[%clk 0:00:22]} 58. Kf2 {[%clk 0:00:07]}  h4 {[%clk 0:00:23]} 59. gxh4 {[%clk 0:00:07]}  Kxf4 {[%clk 0:00:24]} 60. Kg2 {[%clk 0:00:08]}  Kg4 {[%clk 0:00:24]} 61. Kh2 {[%clk 0:00:07]}  Kxh4 {[%clk 0:00:24]} 62. Kg2 {[%clk 0:00:07]}  Kg4 {[%clk 0:00:25]} 63. Kg1 {[%clk 0:00:07]}  Kg3 {[%clk 0:00:25]} 64. Kh1 {[%clk 0:00:08]}  g5 {[%clk 0:00:22]} 65. Kg1 {[%clk 0:00:08]}  g4 {[%clk 0:00:21]} 66. Kh1 {[%clk 0:00:09]}  Kh3 {[%clk 0:00:21]} 67. Kg1 {[%clk 0:00:09]}  Kg3 {[%clk 0:00:21]} 68. Kh1 {[%clk 0:00:09]}  Kf2 {[%clk 0:00:21]} 0-1


[Site "https://www.chess.com"]